fUST/lending_fUST_20250603
["ID","MTS","AMOUNT","RATE_DAILY","PERIOD"]
[363902091,1748916650203,-1872.97,0.00020821,2]
[363902093,1748916650213,-581.03,0.00020821,2]
[363902095,1748916650222,-1121.23,0.00020821,2]
[363902097,1748916650231,-1411.27,0.00020821,2]
[363902100,1748916650244,-3386.92,0.00020821,2]
[363902102,1748916650254,-1271.01,0.00020821,2]
[363902104,1748916650263,-903.01,0.00020821,2]
[363902106,1748916650272,-612.39,0.00020821,2]
[363902108,1748916650282,-440.0,0.00020821,2]
[363902110,1748916650292,-1298.78,0.00020821,2]
[363902112,1748916650301,-1350.64,0.00020821,2]
[363902114,1748916650310,-440.0,0.00020821,2]
[363902116,1748916650320,-1195.46,0.00020821,2]
[363902118,1748916650329,-555.43,0.00020821,2]
[363902120,1748916650338,-1631.27,0.00020821,2]
[363902121,1748916650348,-1281.77,0.00020821,2]
[363902122,1748916650358,-1421.7,0.00020821,2]
[363902123,1748916650368,-440.0,0.00020821,2]
[363902124,1748916650378,-501.2,0.00020821,2]
[363902125,1748916650387,-3244.02,0.00020821,2]
[363902126,1748916650397,-3000.0,0.00021,2]
[363902127,1748916650407,-2771.30047706,0.00021003,4]
[363902128,1748916650417,-3000.0,0.0002101,2]
[363902129,1748916650427,-260.408791,0.00021015,2]
[363902130,1748916650437,-153.326271,0.00021015,2]
[363902131,1748916650447,-152.37664978,0.00021015,2]
[363902132,1748916650457,-153.84648314,0.00021015,2]
[363902133,1748916650467,-207.4,0.00021015,2]
[363902134,1748916650477,-500.0,0.00021015,2]
[363902135,1748916650486,-500.0,0.00021015,2]
[363902136,1748916650496,-500.0,0.00021015,2]
[363902137,1748916650506,-500.0,0.00021015,2]
[363902138,1748916650515,-500.0,0.00021015,2]
[363902139,1748916650525,-500.0,0.00021015,2]
[363902140,1748916650535,-500.0,0.00021015,2]
[363902141,1748916650544,-500.0,0.00021015,2]
[363902142,1748916650555,-5000.0,0.00021015,2]
[363902143,1748916650564,-500.0,0.00021015,2]
[363902144,1748916650573,-500.0,0.00021015,2]
[363902145,1748916650583,-500.0,0.00021015,2]
[363902146,1748916650593,-3898.2834867,0.00021015,2]
[363902147,1748916650603,-500.0,0.00021015,2]
[363902148,1748916650613,-500.0,0.00021015,2]
[363902149,1748916650622,-500.0,0.00021015,2]
[363902150,1748916650632,-500.0,0.00021015,2]
[363902151,1748916650642,-500.0,0.00021015,2]
[363902152,1748916650652,-500.0,0.00021015,2]
[363902153,1748916650662,-500.0,0.00021015,2]
[363902154,1748916650672,-500.0,0.00021015,2]
[363902155,1748916650682,-500.0,0.00021015,2]
[363902156,1748916650691,-500.0,0.00021015,2]
[363902157,1748916650704,-500.0,0.00021015,2]
[363902158,1748916650714,-500.0,0.00021015,2]
[363902159,1748916650723,-500.0,0.00021015,2]
[363902160,1748916650732,-500.0,0.00021015,2]
[363902161,1748916650742,-500.0,0.00021015,2]
[363902162,1748916650751,-500.0,0.00021015,2]
[363902163,1748916650761,-500.0,0.00021015,2]
[363902165,1748916650771,-500.0,0.00021015,2]
[363902166,1748916650781,-500.0,0.00021015,2]
[363902168,1748916650791,-3000.0,0.0002102,2]
[363902170,1748916650800,-3000.0,0.0002103,2]
[363902172,1748916650809,-151.0,0.0002103,2]
[363902174,1748916650820,-151.0,0.0002103,2]
[363902176,1748916650829,-151.0,0.0002103,2]
[363902179,1748916650839,-164.97696,0.0002103,2]
[363902180,1748916650848,-164.97696,0.0002103,2]
[363902183,1748916650858,-1500.0,0.00021037,2]
[363902185,1748916650867,-1800.0,0.00021037,2]
[363902187,1748916650877,-3000.0,0.0002104,2]
[363902189,1748916650887,-3000.0,0.0002105,2]
[363902191,1748916650896,-3000.0,0.0002106,2]
[363902193,1748916650905,-1000.0,0.0002106,2]
[363902195,1748916650915,-4504.130147,0.0002107,2]
[363902197,1748916650924,-151.0,0.00021078,18]
[363902198,1748916650934,-440.0,0.00021095,2]
[363902200,1748916650943,-361.02593736,0.00021095,2]
[363902202,1748916650953,-440.0,0.00021095,2]
[363902204,1748916650963,-223.412349,0.00021095,2]
[363902206,1748916650972,-151.0,0.00021095,2]
[363902209,1748916650982,-223.412349,0.00021095,2]
[363902211,1748916650993,-440.0,0.00021095,2]
[363902213,1748916651002,-151.0,0.00021095,2]
[363902215,1748916651012,-151.0,0.00021095,2]
[363902217,1748916651021,-495.21,0.00021095,2]
[363902219,1748916651031,-2904.1,0.00021095,2]
[363902221,1748916651042,-1325.68,0.00021095,2]
[363902223,1748916651051,-669.46,0.00021095,2]
[363902225,1748916651061,-815.71,0.00021095,2]
[363902227,1748916651070,-1015.84,0.00021095,2]
[363902229,1748916651080,-480.41,0.00021095,2]
[363902231,1748916651091,-440.0,0.00021095,2]
[363902233,1748916651102,-287.0360641,0.00021095,2]
[363902235,1748916651112,-2449.28,0.00021095,2]
[363902237,1748916651121,-1872.97,0.00021095,2]
[363902238,1748916651131,-581.03,0.00021095,2]
[363902239,1748916651141,-1121.23,0.00021095,2]
[363902240,1748916651151,-1411.27,0.00021095,2]
[363902241,1748916651162,-3386.92,0.00021095,2]
[363902242,1748916651174,-1271.01,0.00021095,2]
[363902243,1748916651184,-903.01,0.00021095,2]
[363902244,1748916651194,-612.39,0.00021095,2]
[363902246,1748916651206,-440.0,0.00021095,2]
[363902248,1748916651216,-1298.78,0.00021095,2]
[363902250,1748916651226,-1350.64,0.00021095,2]
[363902252,1748916651238,-440.0,0.00021095,2]
[363902254,1748916651248,-1195.46,0.00021095,2]
[363902256,1748916651259,-555.43,0.00021095,2]
[363902258,1748916651270,-1631.27,0.00021095,2]
[363902260,1748916651280,-1281.77,0.00021095,2]
[363902262,1748916651290,-1421.7,0.00021095,2]
[363902264,1748916651299,-440.0,0.00021095,2]
[363902266,1748916651309,-501.2,0.00021095,2]
[363902268,1748916651318,-3244.02,0.00021095,2]
[363902270,1748916651328,-500.0,0.0002116,2]
[363902272,1748916651338,-500.0,0.0002116,2]
[363902274,1748916651347,-2771.30047706,0.00021245,4]
[363902276,1748916651358,-1000.0,0.00021267,5]
[363902278,1748916651368,-151.0,0.00021347,20]
[363902279,1748916651378,-440.0,0.00021369,2]
[363902280,1748916651389,-440.0,0.00021369,2]
[363902281,1748916651399,-440.0,0.00021369,2]
[363902282,1748916651409,-151.0,0.00021369,2]
[363902283,1748916651419,-495.21,0.00021369,2]
[363902284,1748916651431,-2904.1,0.00021369,2]
[363902285,1748916651441,-1325.68,0.00021369,2]
[363902286,1748916651451,-151.0,0.00021369,2]
[363902287,1748916651463,-669.46,0.00021369,2]
[363902288,1748916651473,-151.0,0.00021369,2]
[363902289,1748916651484,-815.71,0.00021369,2]
[363902290,1748916651494,-151.0,0.00021369,2]
[363902291,1748916651505,-1015.84,0.00021369,2]
[363902292,1748916651515,-480.41,0.00021369,2]
[363902293,1748916651524,-440.0,0.00021369,2]
[363902294,1748916651534,-2449.28,0.00021369,2]
[363902295,1748916651544,-1872.97,0.00021369,2]
[363902296,1748916651554,-581.03,0.00021369,2]
[363902297,1748916651564,-1121.23,0.00021369,2]
[363902298,1748916651574,-1411.27,0.00021369,2]
[363902300,1748916651584,-3386.92,0.00021369,2]
[363902302,1748916651593,-1271.01,0.00021369,2]
[363902303,1748916651603,-903.01,0.00021369,2]
[363902313,1748916651712,-612.39,0.00021369,2]
[363902315,1748916651722,-542.76806273,0.00021369,2]
[363902317,1748916651732,-1298.78,0.00021369,2]
[363902319,1748916651742,-1350.64,0.00021369,2]
[363902321,1748916651752,-440.0,0.00021369,2]
[363902323,1748916651763,-1195.46,0.00021369,2]
[363902325,1748916651773,-555.43,0.00021369,2]
[363902327,1748916651783,-1631.27,0.00021369,2]
[363902329,1748916651793,-1281.77,0.00021369,2]
[363902331,1748916651802,-1421.7,0.00021369,2]
[363902333,1748916651812,-440.0,0.00021369,2]
[363902335,1748916651822,-501.2,0.00021369,2]
[363902337,1748916651833,-3244.02,0.00021369,2]
[363902339,1748916651843,-510.30527392,0.00021376,2]
[363902341,1748916651852,-2771.30047706,0.00021486,5]
[363902343,1748916651862,-214.053211,0.000215,2]
[363902345,1748916651872,-214.053211,0.000215,2]
[363902347,1748916651881,-164.618008,0.000215,2]
[363902349,1748916651890,-164.618008,0.000215,2]
[363902351,1748916651900,-795.234995,0.000215,2]
[363902353,1748916651909,-795.234995,0.000215,2]
[363902356,1748916651920,-144538.94476,0.00021562,2]
[363902358,1748916651930,-5000.0,0.00021563,2]
[363902359,1748916651940,-2000.0,0.00021585,2]
[363902361,1748916651949,-395.65968892,0.00021585,2]
[363902363,1748916651959,-18829.56,0.00021597,2]
[363902365,1748916651968,-313.206641,0.00021597,2]
[363902367,1748916651977,-313.206641,0.00021597,2]
[363902369,1748916651986,-732.52,0.000216,6]
[363902370,1748916651996,-151.0,0.00021617,21]
[363902372,1748916652005,-151.0,0.00021643,2]
[363902374,1748916652014,-151.0,0.00021643,2]
[363902376,1748916652023,-440.0,0.00021643,2]
[363902378,1748916652033,-440.0,0.00021643,2]
[363902380,1748916652043,-381.56230649,0.00021643,2]
[363902383,1748916652052,-199.294933,0.00021643,2]
[363902385,1748916652062,-151.0,0.00021643,2]
[363902387,1748916652071,-495.21,0.00021643,2]
[363902389,1748916652081,-2904.1,0.00021643,2]
[363902391,1748916652090,-1325.68,0.00021643,2]
[363902393,1748916652100,-669.46,0.00021643,2]
[363902395,1748916652109,-815.71,0.00021643,2]
[363902397,1748916652118,-1015.84,0.00021643,2]
[363902399,1748916652128,-480.41,0.00021643,2]
[363902401,1748916652137,-440.0,0.00021643,2]
[363902403,1748916652147,-2449.28,0.00021643,2]
[363902405,1748916652156,-1872.97,0.00021643,2]
[363902407,1748916652170,-581.03,0.00021643,2]
[363902409,1748916652180,-1121.23,0.00021643,2]
[363902411,1748916652190,-1411.27,0.00021643,2]
[363902413,1748916652200,-3386.92,0.00021643,2]
[363902415,1748916652209,-746.659329,0.00021643,2]
[363902417,1748916652219,-746.659329,0.00021643,2]
[363902419,1748916652228,-1271.01,0.00021643,2]
[363902421,1748916652238,-407.011422,0.00021643,2]
[363902423,1748916652248,-407.011422,0.00021643,2]
[363902425,1748916652257,-903.01,0.00021643,2]
[363902427,1748916652267,-612.39,0.00021643,2]
[363902429,1748916652276,-1298.78,0.00021643,2]
[363902431,1748916652286,-1350.64,0.00021643,2]
[363902433,1748916652295,-440.0,0.00021643,2]
[363902435,1748916652305,-1195.46,0.00021643,2]
[363902437,1748916652314,-555.43,0.00021643,2]
[363902439,1748916652323,-1631.27,0.00021643,2]
[363902441,1748916652332,-1281.77,0.00021643,2]
[363902443,1748916652342,-1421.7,0.00021643,2]
[363902445,1748916652351,-440.0,0.00021643,2]
[363902447,1748916652361,-501.2,0.00021643,2]
[363902449,1748916652371,-3244.02,0.00021643,2]
[363902451,1748916652381,-806.18875192,0.00021708,2]
[363902453,1748916652391,-177.8757286,0.00021708,2]
[363902455,1748916652401,-595.21809465,0.00021723,2]
[363902457,1748916652411,-2771.30047706,0.00021728,5]
[363902459,1748916652420,-742.943019,0.00021747,3]
[363902461,1748916652430,-224.55232659,0.00021747,2]
[363902463,1748916652439,-224.55232659,0.00021747,2]
[363902465,1748916652449,-6725.153736,0.00021798,2]
[363902467,1748916652459,-151.0,0.000218,2]
[363902469,1748916652468,-151.0,0.000218,2]
[363902471,1748916652478,-150.125,0.0002186,2]
[363902473,1748916652488,-150.0,0.0002186,2]
[363902475,1748916652497,-150.497,0.0002186,2]
[363902477,1748916652506,-150.0,0.0002186,2]
[363902479,1748916652516,-150.0,0.0002186,2]
[363902481,1748916652525,-965.62,0.0002186,2]
[363902483,1748916652535,-709.0,0.0002186,2]
[363902485,1748916652547,-2227.0,0.0002186,2]
[363902487,1748916652556,-492.976,0.0002186,2]
[363902489,1748916652567,-405.0,0.0002186,2]
[363902491,1748916652576,-151.0,0.00021887,23]
[363902493,1748916652586,-500.91417317,0.00021894,2]
[363902495,1748916652596,-3915.68499565,0.000219,3]
[363902498,1748916652606,-16335.0,0.000219,4]
[363902500,1748916652616,-397.31064,0.000219,2]
[363902502,1748916652625,-397.31064,0.000219,2]
[363902504,1748916652635,-151.0,0.000219,2]
[363902506,1748916652644,-151.0,0.000219,2]
[363902508,1748916652653,-4078.62728349,0.000219,2]
[363902510,1748916652662,-160.0,0.00021905,4]
[363902512,1748916652673,-151.0,0.00021917,2]
[363902514,1748916652684,-151.0,0.00021917,2]
[363902516,1748916652694,-151.0,0.00021917,2]
[363902518,1748916652704,-200.0,0.00021917,2]
[363902520,1748916652714,-440.0,0.00021917,2]
[363902522,1748916652724,-228.25164395,0.00021917,2]
[363902524,1748916652734,-500.0,0.00021917,2]
[363902526,1748916652744,-495.21,0.00021917,2]
[363902528,1748916652754,-2904.1,0.00021917,2]
[363902530,1748916652763,-1325.68,0.00021917,2]
[363902532,1748916652773,-669.46,0.00021917,2]
[363902534,1748916652784,-815.71,0.00021917,2]
[363902536,1748916652794,-1015.84,0.00021917,2]
[363902538,1748916652803,-480.41,0.00021917,2]
[363902540,1748916652812,-415.59363616,0.00021917,2]
[363902542,1748916652822,-2449.28,0.00021917,2]
[363902544,1748916652832,-1872.97,0.00021917,2]
[363902546,1748916652842,-581.03,0.00021917,2]
[363902548,1748916652851,-1121.23,0.00021917,2]
[363902550,1748916652861,-1411.27,0.00021917,2]
[363902553,1748916652872,-3386.92,0.00021917,2]
[363902555,1748916652882,-1271.01,0.00021917,2]
[363902557,1748916652892,-903.01,0.00021917,2]
[363902559,1748916652901,-612.39,0.00021917,2]
[363902561,1748916652912,-1298.78,0.00021917,2]
[363902563,1748916652921,-1350.64,0.00021917,2]
[363902564,1748916652932,-440.0,0.00021917,2]
[363902567,1748916652943,-151.0,0.00021917,2]
[363902568,1748916652953,-151.0,0.00021917,2]
[363902570,1748916652963,-1195.46,0.00021917,2]
[363902572,1748916652973,-555.43,0.00021917,2]
[363902574,1748916652983,-1631.27,0.00021917,2]
[363902576,1748916652992,-1281.77,0.00021917,2]
[363902578,1748916653002,-1421.7,0.00021917,2]
[363902580,1748916653012,-523.29251388,0.00021917,2]
[363902582,1748916653022,-164.97696,0.00021917,2]
[363902584,1748916653032,-501.2,0.00021917,2]
[363902586,1748916653043,-164.97696,0.00021917,2]
[363902588,1748916653053,-500.0,0.00021917,2]
[363902590,1748916653063,-500.0,0.00021917,2]
[363902592,1748916653074,-500.0,0.00021917,2]
[363902594,1748916653084,-500.0,0.00021917,2]
[363902596,1748916653095,-500.0,0.00021917,2]
[363902598,1748916653105,-500.0,0.00021917,2]
[363902600,1748916653115,-500.0,0.00021917,2]
[363902603,1748916653126,-500.0,0.00021917,2]
[363902605,1748916653135,-500.0,0.00021917,2]
[363902606,1748916653145,-500.0,0.00021917,2]
[363902608,1748916653155,-504.51139258,0.00021917,2]
[363902610,1748916653167,-3244.02,0.00021917,2]
[363902612,1748916653177,-151.0,0.00021918,2]
[363902614,1748916653189,-400.297127,0.00021918,2]
[363902616,1748916653200,-400.297127,0.00021918,2]
[363902619,1748916653211,-400.297127,0.00021918,2]
[363902621,1748916653221,-400.297127,0.00021918,2]
[363902623,1748916653231,-400.297127,0.00021918,2]
[363902625,1748916653243,-400.297127,0.00021918,2]
[363902627,1748916653252,-150.0,0.00021918,2]
[363902629,1748916653262,-500.0,0.00021918,2]
[363902630,1748916653271,-500.0,0.00021918,2]
[363902632,1748916653280,-500.0,0.00021918,2]
[363902634,1748916653289,-500.0,0.00021918,2]
[363902636,1748916653299,-500.0,0.00021918,2]
[363902638,1748916653309,-466.25757701,0.00021918,2]
[363902640,1748916653319,-500.0,0.00021918,2]
[363902642,1748916653328,-500.0,0.00021918,2]
[363902644,1748916653338,-500.0,0.00021918,2]
[363902646,1748916653347,-2771.30047706,0.00021969,6]
[363902648,1748916653357,-501.60086347,0.00021973,2]
[363902650,1748916653367,-98777.09278196,0.00021999,2]
[363902652,1748916653377,-10000.0,0.00022,2]
[363902654,1748916653386,-2000.0,0.00022,2]
[363902656,1748916653396,-28485.80954104,0.00022,2]
[363902670,1748916653517,-667.58803514,0.00022,2]
[363902672,1748916653529,-531.5,0.00022,2]
[363902675,1748916653541,-1056.37985105,0.00022,2]
[363902697,1748916653756,-374.03276725,0.00022,2]
[363902699,1748916653769,-4872.7941582,0.00022,2]
[363902702,1748916653780,-1212.94581559,0.00022,2]
[363902711,1748916653857,-430.0,0.00016711,2]
[363902713,1748916653867,-1033.06412754,0.00022,2]
[363902715,1748916653879,-12781.61555126,0.00022,2]
[363902717,1748916653890,-6908.17711618,0.00022,2]
[363902719,1748916653903,-3554.02668019,0.00022,2]
[363902721,1748916653914,-266.085,0.00022,2]
[363902730,1748916653989,-702.06664328,0.00022,2]
[363902733,1748916654002,-131827.63713555,0.00022,2]
[363902735,1748916654012,-1899.84009135,0.00022,2]
[363904064,1748916999542,2385.41492434,0.00024658,120]
[363904068,1748917559277,189.398727,0.00013699,2]
[363904071,1748917722618,301.9999999,0.0002,120]
[363904111,1748917832400,-300.0,0.00016437,2]
[363904112,1748917832411,-300.0,0.00016437,2]
[363904113,1748917832421,-400.0,0.00016437,2]
[363904114,1748917832456,-800.0,0.00016437,2]
[363904115,1748917832466,-440.0,0.00016438,2]
[363904116,1748917832476,-440.0,0.00016438,2]
[363904117,1748917832495,-440.0,0.00016438,2]
[363904118,1748917832507,-430.0,0.00016438,2]
[363904119,1748917832517,-430.0,0.00016438,2]
[363904120,1748917832527,-440.0,0.00016438,2]
[363904121,1748917832537,-430.0,0.00016438,2]
[363904122,1748917832547,-430.0,0.00016438,2]
[363904123,1748917832558,-430.0,0.00016438,2]
[363904124,1748917832572,-430.0,0.00016438,2]
[363904125,1748917832583,-430.0,0.00016438,2]
[363904126,1748917832593,-440.0,0.00016438,2]
[363904127,1748917832603,-430.0,0.00016438,2]
[363904128,1748917832615,-430.0,0.00016438,2]
[363904129,1748917832625,-430.0,0.00016438,2]
[363904130,1748917832637,-440.0,0.00016438,2]
[363904131,1748917832647,-513.89,0.00016438,2]
[363904132,1748917832658,-440.0,0.00016438,2]
[363904133,1748917832668,-202.86243091,0.00016438,2]
[363904134,1748917832678,-576.76,0.00016438,2]
[363904135,1748917832688,-2271.48,0.00016438,2]
[363904136,1748917832699,-483.51,0.00016438,2]
[363904137,1748917832710,-430.0,0.00016438,2]
[363904138,1748917832720,-440.0,0.00016438,2]
[363904139,1748917832730,-1052.03,0.00016438,2]
[363904140,1748917832740,-440.0,0.00016438,2]
[363904141,1748917832750,-881.31,0.00016438,2]
[363904142,1748917832760,-675.32,0.00016438,2]
[363904143,1748917832770,-1552.34,0.00016438,2]
[363904144,1748917832780,-440.0,0.00016438,2]
[363904145,1748917832789,-440.0,0.00016438,2]
[363904146,1748917832799,-440.0,0.00016438,2]
[363904147,1748917832809,-640.89,0.00016438,2]
[363904148,1748917832819,-440.0,0.00016438,2]
[363904149,1748917832828,-440.0,0.00016438,2]
[363904150,1748917832839,-440.0,0.00016438,2]
[363904151,1748917832848,-440.0,0.00016438,2]
[363904152,1748917832858,-440.0,0.00016438,2]
[363904153,1748917832868,-440.0,0.00016438,2]
[363904154,1748917832878,-517.66036021,0.00016438,2]
[363904155,1748917832888,-400.10952663,0.00016438,2]
[363904156,1748917832901,-147.81047337,0.00016438,2]
[363904157,1748917832909,-440.0,0.00016438,2]
[363904158,1748917832916,-440.0,0.00016438,2]
[363904159,1748917832923,-731.19,0.00016438,2]
[363904160,1748917832931,-440.0,0.00016438,2]
[363904161,1748917832939,-95.61178039,0.00016438,2]
[363904162,1748917832949,-267.88980492,0.00016438,2]
[363904163,1748917832961,-76.49841469,0.00016438,2]
[363904164,1748917832971,-385.48464066,0.00016438,2]
[363904165,1748917832980,-440.0,0.00016438,2]
[363904166,1748917832990,-418.87619692,0.00016438,2]
[363904196,1748917838485,-1033.17380308,0.00016438,2]
[363904198,1748917838495,-1571.66515397,0.00016438,2]
[363904200,1748917838507,-7879.43953014,0.00016438,2]
[363904202,1748917838518,-297.60904736,0.0001661,2]
[363904203,1748917838529,-440.0,0.0001671,2]
[363904205,1748917838539,-440.0,0.0001671,2]
[363904207,1748917838548,-430.0,0.0001671,2]
[363904208,1748917838559,-440.0,0.0001671,2]
[363904210,1748917838574,-440.0,0.0001671,2]
[363904211,1748917838583,-430.0,0.0001671,2]
[363904212,1748917838593,-430.0,0.0001671,2]
[363904213,1748917838604,-646.83,0.0001671,2]
[363904214,1748917838614,-440.0,0.0001671,2]
[363904215,1748917838625,-589.5286236,0.0001671,2]
[363904216,1748917838636,-306.60592501,0.0001671,2]
[363904217,1748917838648,-649.39,0.0001671,2]
[363904218,1748917838658,-440.1873256,0.0001671,2]
[363904219,1748917838670,-815.64,0.0001671,2]
[363904220,1748917838680,-1571.32,0.0001671,2]
[363904221,1748917838690,-440.0,0.00016711,2]
[363904222,1748917838700,-440.0,0.00016711,2]
[363904223,1748917838709,-440.2192052,0.00016711,2]
[363904224,1748917838719,-440.0,0.00016712,2]
[363904225,1748917838729,-440.0,0.00016712,2]
[363904226,1748917838739,-440.0,0.00016712,2]
[363904227,1748917838749,-440.0,0.00016712,2]
[363904228,1748917838924,-440.0,0.00016712,2]
[363904229,1748917838935,-440.0,0.00016712,2]
[363904230,1748917838945,-513.89,0.00016712,2]
[363904231,1748917838956,-440.0,0.00016712,2]
[363904232,1748917838971,-576.76,0.00016712,2]
[363904233,1748917838983,-1619.82716257,0.00016712,2]
[363904234,1748917838996,-651.65283743,0.00016712,2]
[363904235,1748917839007,-483.51,0.00016712,2]
[363904236,1748917839016,-440.0,0.00016712,2]
[363904237,1748917839026,-1052.03,0.00016712,2]
[363904238,1748917839038,-440.0,0.00016712,2]
[363904239,1748917839048,-881.31,0.00016712,2]
[363904240,1748917839058,-675.32,0.00016712,2]
[363904241,1748917839068,-1552.34,0.00016712,2]
[363904242,1748917839078,-348.99153544,0.00016712,2]
[363904243,1748917839092,-91.00846456,0.00016712,2]
[363904244,1748917839101,-562.04374743,0.00016712,2]
[363904245,1748917839111,-440.0,0.00016712,2]
[363904246,1748917839121,-640.89,0.00016712,2]
[363904247,1748917839130,-440.0,0.00016712,2]
[363904248,1748917839139,-440.0,0.00016712,2]
[363904249,1748917839149,-440.0,0.00016712,2]
[363904250,1748917839160,-440.0,0.00016712,2]
[363904251,1748917839171,-440.0,0.00016712,2]
[363904252,1748917839183,-440.0,0.00016712,2]
[363904253,1748917839194,-212.13714115,0.00016712,2]
[363904254,1748917839211,-335.78285885,0.00016712,2]
[363904255,1748917839224,-440.0,0.00016712,2]
[363904256,1748917839234,-299.83971905,0.00016712,2]
[363904257,1748917839243,-731.19,0.00016712,2]
[363904258,1748917839254,-440.0,0.00016712,2]
[363904259,1748917839264,-440.0,0.00016712,2]
[363904260,1748917839274,-440.0,0.00016712,2]
[363904261,1748917839283,-1452.05,0.00016712,2]
[363904262,1748917839292,-440.0,0.00016984,2]
[363904263,1748917839302,-437.0822292,0.00016984,2]
[363904264,1748917839311,-324.63575684,0.00016984,2]
[363904265,1748917839321,-440.0,0.00016984,2]
[363904266,1748917839330,-646.83,0.00016984,2]
[363904267,1748917839339,-430.54111973,0.00016984,2]
[363904268,1748917839349,-649.39,0.00016984,2]
[363904269,1748917839359,-815.64,0.00016984,2]
[363904270,1748917839368,-1571.32,0.00016984,2]
[363904271,1748917839378,-169.58803947,0.00016985,2]
[363904272,1748917839387,-420.0,0.00016985,2]
[363904273,1748917839397,-582.54,0.00016985,2]
[363904274,1748917839407,-440.0,0.00016986,2]
[363904275,1748917839416,-410.0,0.00016986,2]
[363904276,1748917839426,-410.0,0.00016986,2]
[363904277,1748917839436,-381.56230649,0.00016986,2]
[363904278,1748917839446,-440.0,0.00016986,2]
[363904280,1748917839456,-440.0,0.00016986,2]
[363904281,1748917839467,-513.89,0.00016986,2]
[363904282,1748917839477,-440.0,0.00016986,2]
[363904283,1748917839487,-576.76,0.00016986,2]
[363904284,1748917839497,-2271.48,0.00016986,2]
[363904285,1748917839508,-483.51,0.00016986,2]
[363904286,1748917839517,-440.0,0.00016986,2]
[363904287,1748917839527,-1052.03,0.00016986,2]
[363904288,1748917839537,-440.0,0.00016986,2]
[363904289,1748917839546,-881.31,0.00016986,2]
[363904290,1748917839555,-675.32,0.00016986,2]
[363904291,1748917839566,-1552.34,0.00016986,2]
[363904292,1748917839578,-258.00123655,0.00016986,2]
[363904293,1748917839587,-440.0,0.00016986,2]
[363904294,1748917839598,-640.89,0.00016986,2]
[363904295,1748917839607,-440.0,0.00016986,2]
[363904296,1748917839617,-440.0,0.00016986,2]
[363904297,1748917839627,-440.0,0.00016986,2]
[363904298,1748917839636,-331.54630807,0.00016986,2]
[363904299,1748917839649,-172.22279902,0.00016986,2]
[363904300,1748917839659,-440.0,0.00016986,2]
[363904301,1748917839668,-547.92,0.00016986,2]
[363904302,1748917839678,-440.0,0.00016986,2]
[363904303,1748917839687,-731.19,0.00016986,2]
[363904304,1748917839699,-440.0,0.00016986,2]
[363904305,1748917839708,-440.0,0.00016986,2]
[363904306,1748917839718,-440.0,0.00016986,2]
[363904307,1748917839728,-1452.05,0.00016986,2]
[363904308,1748917839739,-440.0,0.00017258,2]
[363904309,1748917839749,-440.0,0.00017258,2]
[363904310,1748917839760,-646.83,0.00017258,2]
[363904311,1748917839771,-649.39,0.00017258,2]
[363904312,1748917839781,-815.64,0.00017258,2]
[363904313,1748917839790,-1571.32,0.00017258,2]
[363904314,1748917839800,-582.54,0.00017259,2]